bitfinex-derivatives/quotes_BTCF0:USTF0_20240905
["timestamp","ask_amount","ask_price","bid_price","bid_amount"]
[1725509159025,0.30668984,57160.0,57159.0,0.166939]
[1725509159322,0.061233,57156.0,57137.0,0.3252]
[1725509159527,0.13,57156.0,57155.0,0.1]
[1725509159824,0.4908,57156.0,57155.0,0.1]
[1725509160014,0.54356184,57156.0,57155.0,0.161233]
[1725509160415,0.54456184,57156.0,57155.0,0.161233]
[1725509160720,0.54356184,57156.0,57155.0,0.161233]
[1725509161521,0.54756184,57156.0,57155.0,0.161233]
[1725509162116,0.55256184,57156.0,57155.0,0.161233]
[1725509170522,0.07181229,57174.0,57155.0,0.161233]
[1725509170523,0.3608,57167.0,57156.0,0.061232]
[1725509170827,0.3291,57191.0,57156.0,0.061232]
[1725509170828,0.421996,57190.0,57167.0,0.06122]
[1725509171028,0.3708,57190.0,57189.0,0.1]
[1725509171229,0.061197,57189.0,57187.0,0.1]
[1725509171428,0.261197,57189.0,57187.0,0.1]
[1725509171624,0.0689,57188.0,57185.0,0.1]
[1725509171822,0.1,57187.0,57182.0,0.00026228]
[1725509172022,0.1,57184.0,57182.0,0.00026228]
[1725509173527,0.104,57184.0,57182.0,0.00126228]
[1725509173833,0.16673782,57184.0,57182.0,0.00126228]
[1725509174031,0.24,57183.0,57182.0,0.00126228]
[1725509174531,0.24,57183.0,57182.0,0.00226228]
[1725509174735,0.30273782,57183.0,57182.0,0.00226228]
[1725509175320,0.31673782,57183.0,57182.0,0.00226228]
[1725509175936,0.32073782,57183.0,57182.0,0.00226228]
[1725509176440,0.08073782,57183.0,57182.0,0.00226228]
[1725509176642,0.018,57183.0,57182.0,0.00226228]
[1725509176847,0.258,57183.0,57182.0,0.00226228]
[1725509177142,0.32073782,57183.0,57182.0,0.00226228]
[1725509179532,0.32073782,57183.0,57182.0,0.06346728]
[1725509180343,0.08073782,57183.0,57182.0,0.06346728]
[1725509180844,0.16073782,57183.0,57182.0,0.06346728]
[1725509183645,0.14673782,57183.0,57182.0,0.42326728]
[1725509183845,0.15673782,57183.0,57182.0,0.42326728]
[1725509184750,0.07673782,57183.0,57182.0,0.42326728]
[1725509184951,0.06673782,57183.0,57182.0,0.42326728]
[1725509185156,0.81874082,57183.0,57182.0,0.00126228]
[1725509185453,0.756003,57183.0,57182.0,0.00126228]
[1725509185849,0.45793979,57183.0,57182.0,0.00126228]
[1725509186052,0.756003,57183.0,57182.0,0.00026228]
[1725509186250,0.395203,57183.0,57182.0,0.00026228]
[1725509186653,0.385203,57183.0,57182.0,0.00026228]
[1725509186852,0.389203,57183.0,57182.0,0.00026228]
[1725509187356,0.385203,57183.0,57182.0,0.00026228]
[1725509187541,0.385203,57183.0,57182.0,0.00126228]
[1725509187744,0.392203,57183.0,57182.0,0.00226228]
[1725509190954,0.45493785,57183.0,57182.0,0.00226228]
[1725509191355,0.392203,57183.0,57182.0,0.00226228]
[1725509191944,0.392203,57183.0,57182.0,0.06346728]
[1725509192350,0.21493736,57183.0,57182.0,0.06346728]
[1725509192850,0.15373436,57183.0,57182.0,0.30346728]
[1725509193353,0.15266127,57183.0,57182.0,0.30346728]
[1725509193661,0.08992691,57183.0,57182.0,0.30346728]
[1725509194751,0.15266127,57183.0,57182.0,0.30346728]
[1725509195050,0.08992691,57183.0,57182.0,0.30346728]
[1725509195246,0.15266127,57183.0,57182.0,0.30346728]
[1725509195954,0.15266127,57183.0,57182.0,0.16346728]
[1725509198961,0.15266127,57183.0,57182.0,0.06346728]
[1725509200158,0.15266127,57183.0,57182.0,0.16346728]
[1725509201063,0.08992691,57183.0,57182.0,0.16346728]
[1725509202352,0.18992691,57183.0,57182.0,0.16346728]
[1725509203863,0.18992691,57183.0,57182.0,0.52426728]
[1725509204657,0.18992691,57183.0,57182.0,0.16346728]
[1725509207364,0.25266127,57183.0,57182.0,0.16346728]
[1725509208264,0.25266127,57183.0,57182.0,0.52597728]
[1725509208265,0.15266127,57183.0,57182.0,0.52597728]
[1725509212979,0.15266127,57183.0,57182.0,0.42597728]
[1725509213277,0.25266127,57183.0,57182.0,0.52597728]
[1725509213572,0.15266127,57183.0,57182.0,0.52597728]
[1725509215478,0.08992691,57183.0,57182.0,0.52597728]
[1725509223284,0.08992691,57183.0,57182.0,0.52426728]
[1725509230586,0.22443373,57183.0,57182.0,0.52426728]
[1725509230790,0.22443373,57183.0,57182.0,0.16346728]
[1725509230990,0.22443373,57183.0,57182.0,0.52426728]
[1725509232495,0.08756,57201.0,57182.0,0.52426728]
[1725509232496,0.07176194,57188.0,57187.0,0.061199]
[1725509232694,0.07176194,57188.0,57187.0,0.521999]
[1725509232896,0.07176194,57188.0,57187.0,1.046599]
[1725509234395,0.1,57200.0,57193.0,0.061193]
[1725509234599,0.07202117,57194.0,57193.0,0.521993]
[1725509235299,0.13473616,57194.0,57193.0,0.521993]
[1725509236195,0.14373616,57194.0,57193.0,0.523993]
[1725509237583,0.00926228,57194.0,57193.0,0.522993]
[1725509237787,0.01126228,57194.0,57193.0,0.523993]
[1725509238786,0.00026228,57194.0,57193.0,0.521993]
[1725509238991,0.00126228,57194.0,57193.0,0.521993]
[1725509243102,0.00126228,57194.0,57193.0,0.161193]
[1725509243302,0.00126228,57194.0,57193.0,0.521993]
[1725509244389,0.06271499,57206.0,57193.0,1.646513]
[1725509244593,0.06271499,57213.0,57212.0,0.061172]
[1725509244797,0.0648,57215.0,57205.0,0.4608]
[1725509244798,0.1648,57215.0,57213.0,0.161171]
[1725509244996,0.1648,57215.0,57213.0,0.061171]
[1725509245188,0.0648,57215.0,57213.0,0.061171]
[1725509245392,0.1,57214.0,57213.0,0.061171]
[1725509245597,0.13447388,57214.0,57213.0,0.1]
[1725509246195,0.13447388,57214.0,57213.0,0.061171]
[1725509246398,0.13447388,57214.0,57213.0,0.062171]
[1725509246697,0.14647388,57214.0,57213.0,0.062171]
[1725509246899,0.24647388,57214.0,57213.0,0.062171]
[1725509247504,0.24476388,57214.0,57213.0,0.062171]
[1725509247697,0.14476388,57214.0,57213.0,0.062171]
[1725509247893,0.24476388,57214.0,57213.0,0.062171]
[1725509248094,0.23276388,57214.0,57213.0,0.061171]
[1725509248392,0.17271499,57214.0,57213.0,0.062171]
[1725509248596,0.17271499,57214.0,57213.0,0.061171]
[1725509248806,0.17271499,57214.0,57213.0,0.062171]
[1725509250705,0.24445241,57214.0,57213.0,0.15595391]
[1725509251402,0.17271499,57214.0,57213.0,0.15595391]
[1725509252106,0.17271499,57214.0,57213.0,0.05595391]
[1725509252298,0.24445241,57214.0,57213.0,0.05595391]
[1725509252493,0.17271499,57214.0,57213.0,0.05595391]
[1725509254300,0.07271499,57214.0,57213.0,0.05595391]
[1725509254497,0.01,57214.0,57213.0,0.05595391]
[1725509254902,0.11,57214.0,57213.0,0.05595391]
[1725509259909,0.11,57214.0,57213.0,0.15595391]
[1725509260604,0.11,57214.0,57213.0,0.14035852]
[1725509260605,0.24445241,57214.0,57213.0,0.14035852]
[1725509261713,0.17271499,57214.0,57213.0,0.14035852]
[1725509261908,0.17271499,57214.0,57213.0,0.50115852]
[1725509262410,0.24445241,57214.0,57213.0,0.50115852]
[1725509262804,0.14445241,57214.0,57213.0,0.50115852]
[1725509263004,0.14445241,57214.0,57213.0,0.40115852]
[1725509263311,0.14445241,57214.0,57213.0,0.50115852]
[1725509265802,0.14445241,57214.0,57213.0,0.45104267]
[1725509266705,0.08173742,57214.0,57213.0,0.45104267]
[1725509267013,0.08173742,57214.0,57213.0,0.51221367]
[1725509267709,0.01,57214.0,57213.0,0.51221367]
[1725509268214,0.012,57214.0,57213.0,0.51321367]
[1725509268915,0.012,57214.0,57213.0,0.51421367]
[1725509268916,0.009,57214.0,57213.0,0.51421367]
[1725509269914,0.109,57214.0,57213.0,0.41421367]
[1725509270715,0.109,57214.0,57213.0,0.51421367]
[1725509270907,0.009,57214.0,57213.0,0.51421367]
[1725509272506,0.00729,57214.0,57213.0,0.51421367]
[1725509279708,0.00729,57214.0,57213.0,0.41421367]
[1725509279913,0.00729,57214.0,57213.0,0.51421367]
[1725509282615,0.06998388,57214.0,57213.0,0.51421367]
[1725509287220,0.16998388,57214.0,57213.0,0.41421367]
[1725509288021,0.06998388,57214.0,57213.0,0.51421367]
[1725509289126,0.06998388,57214.0,57213.0,0.523971]
[1725509290827,0.00729,57214.0,57213.0,0.523971]
[1725509297526,0.00558,57214.0,57213.0,0.523971]
[1725509297735,0.06827388,57214.0,57213.0,0.523971]
[1725509302132,0.06827388,57214.0,57213.0,1.648331]
[1725509302335,0.06827388,57214.0,57213.0,1.781131]
[1725509302632,0.06827388,57214.0,57213.0,1.681131]
[1725509302833,0.06827388,57214.0,57213.0,0.3628]
[1725509303031,0.1400113,57214.0,57213.0,0.3628]
[1725509303232,0.2037113,57214.0,57213.0,0.3628]
[1725509304835,0.2037113,57214.0,57213.0,0.32652001]
[1725509305038,0.12639388,57214.0,57213.0,0.33052001]
[1725509305535,0.12639388,57214.0,57213.0,0.004]
[1725509305838,0.0697,57214.0,57213.0,0.3618]
[1725509306035,0.0697,57214.0,57213.0,0.3628]
[1725509307342,0.0697,57214.0,57213.0,0.423971]
[1725509310546,0.006,57214.0,57213.0,0.423971]
[1725509311647,0.006,57214.0,57213.0,0.490771]
[1725509313440,0.006,57214.0,57213.0,0.552871]
[1725509314844,0.006,57214.0,57213.0,0.652871]
[1725509317341,0.006,57214.0,57213.0,1.177231]
[1725509317541,0.006,57214.0,57213.0,1.077231]
[1725509317753,0.006,57214.0,57213.0,1.177231]
[1725509319056,0.006,57214.0,57213.0,0.652871]
[1725509320748,0.06868707,57214.0,57213.0,0.652871]
[1725509321155,0.06868707,57214.0,57213.0,0.551871]
[1725509321156,0.06268707,57214.0,57213.0,0.551871]
[1725509321453,0.06268707,57214.0,57213.0,0.652871]
[1725509322551,0.06115707,57214.0,57213.0,0.652871]
[1725509325461,0.06115707,57214.0,57213.0,1.838402]
[1725509327166,0.00026228,57220.0,57219.0,0.061165]
[1725509327351,0.00026228,57220.0,57219.0,0.521965]
[1725509328357,0.00526228,57220.0,57219.0,0.521965]
[1725509328568,0.00526228,57220.0,57219.0,0.421965]
[1725509328751,0.00526228,57220.0,57219.0,0.521965]
[1725509329059,0.00626228,57220.0,57219.0,1.046245]
[1725509330051,0.00526228,57220.0,57219.0,1.046245]
[1725509330451,0.00126228,57220.0,57219.0,1.046245]
[1725509331362,0.00026228,57220.0,57219.0,1.046245]
[1725509333062,0.00026228,57220.0,57219.0,0.521965]
[1725509334267,0.00026228,57220.0,57219.0,1.646245]
[1725509336668,0.00026228,57220.0,57219.0,1.546245]
[1725509336874,0.06293794,57220.0,57219.0,1.646245]
[1725509337174,0.00026228,57220.0,57219.0,1.646245]
[1725509339670,0.00026228,57220.0,57219.0,1.653245]
[1725509340271,0.00126228,57220.0,57219.0,1.658245]
[1725509340978,0.00126228,57220.0,57219.0,1.71941]
[1725509341979,0.00026228,57220.0,57219.0,1.71241]
[1725509342279,0.00126228,57220.0,57219.0,1.71841]
[1725509342679,0.1068,57232.0,57231.0,0.061152]
[1725509342866,0.1068,57232.0,57231.0,0.882752]
[1725509343982,0.1148,57232.0,57231.0,0.884752]
[1725509344171,0.068,57232.0,57231.0,0.884752]
[1725509344683,0.068,57232.0,57231.0,0.89333514]
[1725509345973,0.067,57232.0,57231.0,0.89233514]
[1725509346672,0.062,57232.0,57231.0,0.89133514]
[1725509346881,0.062,57232.0,57231.0,0.882752]
[1725509347081,1.3562,57232.0,57226.0,0.00026228]
[1725509347271,0.1,57227.0,57226.0,0.00026228]
[1725509347677,0.1,57231.0,57226.0,0.00026228]
[1725509347884,0.0494,57231.0,57230.0,0.061153]
[1725509350981,0.11207416,57231.0,57230.0,0.061153]
[1725509352593,0.11057416,57231.0,57230.0,0.061153]
[1725509354081,0.06267416,57231.0,57230.0,0.421953]
[1725509355084,0.06267416,57231.0,57230.0,0.946153]
[1725509357585,0.06267416,57231.0,57230.0,1.546153]
[1725509357897,0.00026228,57237.0,57236.0,0.061147]
[1725509358193,0.00026228,57237.0,57236.0,0.521947]
[1725509359889,0.00026228,57237.0,57236.0,1.646107]
[1725509360391,0.00326228,57237.0,57236.0,1.646107]
[1725509361299,0.00326228,57237.0,57236.0,1.046107]
[1725509361598,0.00326228,57237.0,57236.0,1.707254]
[1725509365504,0.0454,57252.0,57247.0,0.061135]
[1725509365699,0.047,57250.0,57237.0,0.061146]
[1725509365901,0.047,57250.0,57249.0,0.4608]
[1725509366092,0.047,57250.0,57249.0,0.3608]
[1725509366404,0.047,57250.0,57249.0,0.4608]
[1725509366793,0.048,57250.0,57249.0,0.521933]
[1725509366993,0.001,57250.0,57249.0,0.521933]
[1725509367495,0.001,57250.0,57249.0,0.522933]
[1725509368603,0.047,57251.0,57249.0,0.523933]
[1725509368789,0.047,57251.0,57250.0,0.061132]
[1725509369596,0.0483,57254.0,57252.0,0.06113]
[1725509369796,0.1918,57253.0,57252.0,0.06113]
[1725509370101,0.7158,57253.0,57249.0,0.001]
[1725509370292,0.06266177,57252.0,57250.0,0.001]
[1725509370496,0.061132,57251.0,57249.0,0.001]
[1725509370698,0.061134,57248.0,57244.0,0.00026205]
[1725509370898,0.58570177,57247.0,57244.0,0.06140005]
[1725509371199,0.57608,57245.0,57244.0,0.06140005]
[1725509371405,0.1,57245.0,57244.0,0.00026205]
[1725509371593,0.1,57246.0,57245.0,0.061136]
[1725509371794,0.3608,57250.0,57249.0,0.061133]
[1725509372190,1.48484,57250.0,57249.0,0.061133]
[1725509372906,0.061133,57249.0,57246.0,0.061135]
[1725509373093,0.1,57247.0,57246.0,0.061135]
[1725509373294,0.69473379,57247.0,57246.0,0.061135]
[1725509373904,0.75939749,57247.0,57246.0,0.061135]
[1725509374507,0.23535749,57247.0,57246.0,0.061135]
[1725509374805,0.1646637,57247.0,57246.0,0.062135]
[1725509375004,0.1646637,57247.0,57246.0,0.063135]
[1725509375504,0.0656637,57247.0,57246.0,0.063135]
[1725509375698,0.2277987,57247.0,57246.0,0.063135]
[1725509376099,1.3518387,57247.0,57246.0,0.063135]
[1725509376697,0.0666637,57247.0,57246.0,0.163135]
[1725509376901,0.5907037,57247.0,57246.0,0.063135]
[1725509377106,0.0666637,57247.0,57246.0,0.063135]
[1725509377801,0.1666637,57247.0,57246.0,0.063135]
[1725509378306,0.0666637,57247.0,57246.0,0.063135]
[1725509378906,0.13835749,57247.0,57246.0,0.063135]
[1725509379101,0.13835749,57247.0,57246.0,1.187175]
[1725509379306,0.13835749,57247.0,57246.0,1.235075]
[1725509379493,0.13835749,57247.0,57246.0,0.635075]
[1725509379699,0.13835749,57247.0,57246.0,0.211035]
[1725509379894,0.13835749,57247.0,57246.0,0.351035]
[1725509380103,0.004,57247.0,57246.0,1.4211419]
[1725509380303,0.004,57247.0,57246.0,0.8211419]
[1725509380611,0.004,57247.0,57246.0,1.4211419]
[1725509380903,0.0626637,57261.0,57254.0,0.061128]
[1725509381107,0.0626637,57261.0,57254.0,0.661928]
[1725509381303,0.6167,57268.0,57254.0,1.785888]
[1725509381304,0.0626637,57267.0,57254.0,1.785888]
[1725509381496,0.0626637,57267.0,57254.0,1.831388]
[1725509382197,0.00226205,57255.0,57254.0,1.832388]
[1725509382906,0.00226205,57255.0,57254.0,2.072388]
[1725509383106,0.00226205,57255.0,57254.0,2.119388]
[1725509383604,0.0471,57272.0,57258.0,0.061123]
[1725509383804,0.0471,57272.0,57258.0,0.301123]
[1725509384001,0.0471,57272.0,57258.0,1.425043]
[1725509384399,0.00026205,57264.0,57258.0,1.425043]
[1725509384603,0.00026205,57264.0,57263.0,0.061118]
[1725509384809,0.00026205,57264.0,57263.0,1.261918]
[1725509385104,0.00026205,57264.0,57263.0,1.785798]
[1725509386009,0.00126205,57264.0,57263.0,1.785798]
[1725509386700,0.00126205,57264.0,57263.0,0.661918]
[1725509389708,0.00118205,57264.0,57263.0,0.661918]
[1725509391007,0.00118205,57264.0,57263.0,1.185798]
[1725509391212,0.00118205,57264.0,57263.0,1.19445709]
[1725509392101,0.1077637,57279.0,57268.0,0.061112]
[1725509392414,0.1077637,57279.0,57263.0,1.72468]
[1725509392415,0.061106,57275.0,57271.0,0.24]
[1725509392614,0.1237697,57275.0,57271.0,0.24]
[1725509394012,0.1237697,57275.0,57270.0,0.06111]
[1725509394219,0.1237697,57275.0,57271.0,0.001]
[1725509394515,0.1237697,57275.0,57271.0,0.063109]
[1725509394818,0.1237697,57275.0,57274.0,0.3608]
[1725509395010,0.1237697,57275.0,57272.0,0.24]
[1725509395319,0.0626637,57274.0,57272.0,0.24]
[1725509395511,0.0626637,57274.0,57272.0,0.301108]
[1725509396016,0.061106,57275.0,57272.0,0.301108]
[1725509396206,0.061106,57275.0,57274.0,0.6008]
[1725509396402,0.1237697,57275.0,57274.0,0.6008]
[1725509396617,0.061106,57275.0,57274.0,0.6008]
[1725509397216,0.1548637,57278.0,57274.0,0.661906]
[1725509397415,0.061103,57277.0,57274.0,0.661906]
[1725509397719,0.061103,57277.0,57274.0,0.662906]
[1725509398418,0.061103,57277.0,57275.0,0.061105]
[1725509401020,0.061103,57277.0,57275.0,0.063105]
[1725509401219,0.061103,57277.0,57276.0,0.061104]
[1725509401420,0.0459,57278.0,57277.0,0.061103]
[1725509401622,0.1085296,57278.0,57277.0,0.061103]
[1725509402214,0.03869165,57279.0,57278.0,0.061102]
[1725509402528,0.1013209,57279.0,57278.0,0.061102]
[1725509403321,0.00026205,57279.0,57278.0,0.061102]
[1725509404218,0.00026205,57279.0,57278.0,0.062102]
[1725509404722,0.00026205,57279.0,57278.0,0.061102]
[1725509404920,0.00026205,57279.0,57278.0,0.062102]
[1725509405617,0.00026205,57279.0,57278.0,0.063102]
[1725509406525,0.00026205,57279.0,57278.0,0.112402]
[1725509407024,0.00026205,57279.0,57278.0,0.12119425]
[1725509407212,0.00026205,57279.0,57278.0,0.112402]
[1725509407413,0.00026205,57279.0,57278.0,1.24510279]
[1725509407619,0.00026205,57279.0,57278.0,1.24410279]
[1725509407818,0.00026205,57279.0,57278.0,1.24310279]
[1725509408125,0.00026205,57279.0,57278.0,0.12034279]
[1725509408318,0.00026205,57279.0,57278.0,0.07104279]
[1725509408518,0.00026205,57279.0,57278.0,0.59480279]
[1725509408824,0.00026205,57279.0,57278.0,1.19480279]
[1725509409010,0.00026205,57279.0,57278.0,1.19380279]
[1725509409719,0.00026205,57279.0,57278.0,0.07004279]
[1725509410217,0.0628913,57279.0,57278.0,0.07004279]
[1725509412512,0.0628913,57279.0,57278.0,0.09119675]
[1725509413122,0.0628913,57279.0,57278.0,0.81279675]
[1725509413826,0.0628913,57279.0,57278.0,0.80385596]
[1725509414725,0.0628913,57279.0,57278.0,0.74275396]
[1725509415231,0.3028913,57279.0,57278.0,0.74275396]
[1725509415418,0.43568609,57279.0,57278.0,0.276683]
[1725509415725,0.37458509,57279.0,57274.0,0.061106]
[1725509416027,0.13432304,57278.0,57275.0,0.061105]
[1725509416227,0.13432304,57277.0,57275.0,0.061105]
[1725509416530,0.13432304,57276.0,57275.0,0.061105]
[1725509417422,0.13432304,57276.0,57274.0,0.003]
[1725509417423,0.43542804,57276.0,57274.0,0.003]
[1725509417618,0.11212925,57275.0,57274.0,0.003]
[1725509417822,0.11212925,57275.0,57271.0,0.0215022]
[1725509417823,0.54262304,57275.0,57271.0,0.0215022]
[1725509418021,0.24,57272.0,57270.0,0.00026205]
[1725509418218,0.24,57272.0,57270.0,0.02153296]
[1725509418427,0.4083,57275.0,57270.0,0.02153296]
[1725509418428,0.24,57271.0,57270.0,0.00026205]
[1725509418732,0.2399334,57271.0,57270.0,0.00026205]
[1725509419020,0.2339334,57271.0,57270.0,0.00026205]
[1725509419225,0.29656265,57271.0,57270.0,0.00026205]
[1725509419728,0.29356265,57271.0,57270.0,0.00026205]
[1725509422519,0.29356265,57271.0,57270.0,0.02184605]
[1725509422724,0.06262925,57271.0,57270.0,0.00026205]
[1725509422924,0.061108,57272.0,57270.0,0.06137205]
[1725509423127,0.06262925,57273.0,57272.0,0.061108]
[1725509423326,0.0475,57275.0,57274.0,0.061106]
[1725509423528,0.06136305,57279.0,57275.0,0.061105]
[1725509423727,0.1239923,57279.0,57276.0,0.061104]
[1725509424727,0.1239923,57279.0,57277.0,0.061103]
[1725509425335,0.06262925,57278.0,57277.0,0.061103]
[1725509425533,0.06262925,57278.0,57277.0,0.3010364]
[1725509425836,0.06262925,57278.0,57277.0,0.6618364]
[1725509426428,0.06262925,57278.0,57277.0,0.6628364]
[1725509426838,0.06262925,57278.0,57277.0,1.7865964]
[1725509427228,0.06262925,57278.0,57277.0,1.8840964]
[1725509427629,0.06462925,57278.0,57277.0,1.8850964]
[1725509428126,0.06462925,57278.0,57277.0,1.90498808]
[1725509428332,0.07762925,57278.0,57277.0,1.90598808]
[1725509428834,0.06462925,57278.0,57277.0,1.90498808]
[1725509429035,0.07262925,57278.0,57277.0,1.90598808]
[1725509429429,0.07062925,57278.0,57277.0,1.90498808]
[1725509429625,0.07256265,57278.0,57277.0,1.90498808]
[1725509431028,0.07256265,57278.0,57277.0,1.30498808]
[1725509431233,0.07256265,57278.0,57277.0,0.78122808]
[1725509431925,0.07256265,57278.0,57277.0,1.90498808]
[1725509433240,0.01,57278.0,57277.0,1.90498808]
[1725509434237,0.01,57278.0,57277.0,1.90492148]
[1725509434438,0.06256265,57295.0,57289.0,0.061089]
[1725509434639,0.06256265,57295.0,57293.0,0.24]
[1725509435738,0.06656265,57295.0,57293.0,0.24]
[1725509436237,0.06656265,57295.0,57293.0,0.241]
[1725509437335,0.06656265,57295.0,57293.0,0.242]
[1725509438135,0.06656265,57295.0,57293.0,0.002]
[1725509438940,0.06656265,57295.0,57293.0,0.02288813]
[1725509439140,0.06656265,57295.0,57293.0,0.063086]
[1725509439443,0.24,57294.0,57293.0,0.063086]
[1725509439636,0.954685,57294.0,57293.0,0.002]
[1725509439948,0.06109,57289.0,57281.0,0.24]
[1725509440130,0.06109,57289.0,57281.0,0.13710663]
[1725509440131,0.061092,57288.0,57281.0,0.13710663]
[1725509440438,0.19534844,57287.0,57285.0,0.061054]
[1725509440640,0.060092,57287.0,57286.0,0.061093]
[1725509440833,0.060092,57287.0,57282.0,0.061097]
[1725509440834,0.37427357,57287.0,57282.0,0.061097]
[1725509441038,0.37427357,57287.0,57283.0,0.061096]
[1725509441039,0.061095,57285.0,57283.0,0.061096]
[1725509441244,0.37427357,57284.0,57283.0,0.061096]
[1725509441439,0.48427357,57284.0,57278.0,0.06136382]
[1725509441641,0.3608,57281.0,57278.0,0.06136382]
[1725509441831,0.10762187,57280.0,57278.0,0.06136382]
[1725509442040,0.06262187,57279.0,57278.0,0.06136382]
[1725509442935,0.06162187,57279.0,57278.0,0.06136382]
[1725509443138,0.11042187,57279.0,57278.0,0.06136382]
[1725509443545,0.11042187,57279.0,57278.0,0.30136382]
[1725509444243,0.06162187,57279.0,57278.0,0.30136382]
[1725509445239,0.06462187,57279.0,57278.0,0.30136382]
[1725509448248,0.003,57279.0,57278.0,0.30136382]
[1725509451838,0.06262368,57287.0,57286.0,0.061093]
[1725509452146,0.00026182,57290.0,57286.0,0.061093]
[1725509452147,0.00026182,57290.0,57288.0,0.061091]
[1725509452454,0.00026182,57290.0,57289.0,0.24]
[1725509452757,0.00026182,57290.0,57286.0,0.24]
[1725509452951,0.00026182,57290.0,57285.0,0.3608]
[1725509453248,0.2419334,57287.0,57286.0,0.002]
[1725509453651,0.3030254,57287.0,57286.0,0.002]
[1725509453843,0.12371568,57287.0,57286.0,0.001]
[1725509454044,0.061092,57287.0,57286.0,0.001]
[1725509454746,0.060094,57286.0,57282.0,0.061097]
[1725509455046,0.107594,57286.0,57283.0,0.061097]
[1725509455449,0.105594,57286.0,57283.0,0.061097]
[1725509455844,0.105594,57286.0,57284.0,0.24]
[1725509455845,0.0475,57286.0,57284.0,0.24]
[1725509456047,0.06262368,57288.0,57284.0,0.24]
[1725509456261,0.06262368,57288.0,57287.0,0.24]
[1725509456561,0.06262368,57288.0,57287.0,0.301092]
[1725509458152,0.06255708,57288.0,57287.0,0.301092]
[1725509458358,0.06355708,57288.0,57287.0,0.301092]
[1725509458555,0.001,57288.0,57287.0,0.301092]
[1725509458755,0.001,57288.0,57287.0,0.32263209]
[1725509459059,0.00026182,57290.0,57289.0,0.06109]
[1725509460259,0.00226182,57290.0,57289.0,0.0620234]
[1725509461960,0.00426182,57290.0,57289.0,0.0630234]
[1725509462150,0.06535082,57290.0,57289.0,0.0630234]
[1725509462354,0.92879082,57290.0,57289.0,0.0630234]
[1725509462556,0.9914098,57290.0,57289.0,0.0630234]
[1725509463450,0.7514098,57290.0,57289.0,0.0630234]
[1725509463959,0.1779698,57290.0,57289.0,0.0630234]
[1725509468766,0.1168808,57290.0,57289.0,0.0630234]
[1725509470262,0.05426182,57290.0,57289.0,0.0630234]
[1725509470865,0.11535082,57290.0,57289.0,0.0630234]
[1725509473763,0.11468482,57290.0,57289.0,0.0630234]
[1725509475459,0.11468482,57290.0,57289.0,0.001334]
[1725509476665,0.11401882,57290.0,57289.0,0.001334]
[1725509477866,0.11401882,57290.0,57289.0,0.001]
[1725509478070,0.11401882,57290.0,57289.0,0.000668]
[1725509478263,0.35401882,57290.0,57289.0,0.000668]
[1725509478463,0.4166378,57290.0,57289.0,0.000668]
[1725509479162,0.4159718,57290.0,57289.0,0.000668]
[1725509479857,1.5396118,57290.0,57289.0,0.000668]
[1725509480261,1.5396118,57290.0,57289.0,2e-06]
[1725509480467,0.9396118,57290.0,57289.0,2e-06]
[1725509481176,1.6007008,57290.0,57289.0,2e-06]
[1725509481678,1.6000348,57290.0,57289.0,2e-06]
[1725509481869,1.62072149,57290.0,57289.0,2e-06]
[1725509485477,1.62072149,57290.0,57274.0,0.0474]
[1725509485478,0.061097,57283.0,57274.0,0.0474]
[1725509485662,0.6008,57279.0,57274.0,0.0474]
[1725509485867,0.66341898,57279.0,57274.0,0.0474]
[1725509486062,0.66341898,57279.0,57278.0,0.0214403]
[1725509486771,0.72551998,57279.0,57278.0,0.0214403]
[1725509487272,0.72751998,57279.0,57278.0,0.0214403]
[1725509488568,1.85061398,57279.0,57278.0,0.0214403]
[1725509488776,0.061114,57267.0,57261.0,0.2873]
[1725509489074,0.06261898,57266.0,57263.0,0.38191938]
[1725509489267,0.06261898,57265.0,57264.0,0.301117]
[1725509490476,0.06261898,57266.0,57265.0,0.06045]
[1725509491275,0.0628808,57270.0,57269.0,0.061112]
[1725509491483,0.0628808,57270.0,57269.0,0.301112]
[1725509491484,0.00026182,57270.0,57269.0,0.301112]
[1725509492381,0.00026182,57270.0,57269.0,0.305112]
[1725509492679,0.00026182,57270.0,57269.0,0.065112]
[1725509493383,0.00026182,57270.0,57269.0,0.068112]
[1725509493678,0.00026182,57270.0,57269.0,0.007]
[1725509493869,0.06137182,57270.0,57269.0,0.007]
[1725509495077,0.06137182,57270.0,57269.0,0.02767992]
[1725509495277,0.06070582,57270.0,57269.0,0.007]
[1725509495779,0.06070582,57270.0,57269.0,0.00871]
[1725509496977,0.3608,57274.0,57269.0,0.00871]
[1725509497183,0.061108,57273.0,57269.0,0.069821]
[1725509497579,0.061108,57273.0,57269.0,0.069155]
[1725509498490,0.061108,57273.0,57269.0,0.069821]
[1725509499287,0.061108,57273.0,57271.0,0.061109]
[1725509499481,0.060442,57273.0,57272.0,0.0479]
[1725509500583,0.12307755,57273.0,57272.0,0.0479]
[1725509501490,0.12307755,57273.0,57272.0,0.048234]
[1725509502388,0.06263555,57273.0,57272.0,0.048234]
[1725509502594,0.06263555,57273.0,57272.0,0.109342]
[1725509506993,0.06196955,57273.0,57272.0,0.109342]
[1725509508384,0.30127901,57275.0,57272.0,0.108676]
[1725509508585,0.37127901,57275.0,57272.0,0.108676]
[1725509508798,0.061107,57273.0,57272.0,0.001]
[1725509510695,0.060108,57272.0,57271.0,0.08273683]
[1725509510898,0.300108,57272.0,57271.0,0.08273683]
[1725509511083,0.300108,57272.0,57271.0,0.02162783]
[1725509511284,0.300108,57272.0,57269.0,0.00171]
[1725509511285,0.06111,57270.0,57269.0,0.00171]
[1725509511701,0.12122,57270.0,57269.0,0.00171]
[1725509511885,0.80016,57270.0,57269.0,0.00171]
[1725509512197,0.27632,57270.0,57269.0,0.00171]
[1725509512391,0.27632,57270.0,57269.0,0.00571]
[1725509512392,0.86280492,57270.0,57269.0,0.00571]
[1725509512785,0.86180492,57270.0,57269.0,0.00571]
[1725509513593,0.86280492,57270.0,57269.0,0.00671]
[1725509513790,1.46280492,57270.0,57269.0,0.00671]
[1725509514499,0.86280492,57270.0,57269.0,0.00671]
[1725509515106,0.86980492,57270.0,57269.0,0.00371]